[Event "***Titled Tuesday 3|2 Blitz"]
[Site "Chess.com"]
[Date "2017.02.07"]
[Round "4"]
[White "E-Shaposhnikov"]
[Black "TomsKantans"]
[Result "1-0"]
[WhiteElo "2752"]
[BlackElo "2517"]
[TimeControl "180+2"]
[EndTime "13:59:07 PST"]
[Termination "E-Shaposhnikov won on time"]

1. Nf3 {[%clk 0:03:02]} 1... Nf6 {[%clk 0:02:57.3]} 2. c4 {[%clk 0:03:02.9]}
2... c5 {[%clk 0:02:55.8]} 3. Nc3 {[%clk 0:03:03.1]} 3... Nc6 {[%clk 0:02:56.5]}
4. g3 {[%clk 0:03:03.7]} 4... g6 {[%clk 0:02:57.2]} 5. Bg2 {[%clk 0:03:04.9]}
5... Bg7 {[%clk 0:02:58.3]} 6. O-O {[%clk 0:03:04.7]} 6... O-O {[%clk
0:02:59.2]} 7. d4 {[%clk 0:03:04.7]} 7... d5 {[%clk 0:03:00.8]} 8. dxc5 {[%clk
0:02:23.5]} 8... dxc4 {[%clk 0:03:01.8]} 9. Qa4 {[%clk 0:02:25.1]} 9... Qa5
{[%clk 0:03:02.4]} 10. Qxa5 {[%clk 0:02:17.7]} 10... Nxa5 {[%clk 0:03:03.3]} 11.
Be3 {[%clk 0:02:10.5]} 11... Rd8 {[%clk 0:02:45.6]} 12. Rfd1 {[%clk 0:02:08.7]}
12... Bd7 {[%clk 0:02:46.7]} 13. Ne5 {[%clk 0:02:05.4]} 13... Be8 {[%clk
0:02:41.2]} 14. Rac1 {[%clk 0:01:57.8]} 14... Rxd1+ {[%clk 0:02:12.5]} 15. Rxd1
{[%clk 0:01:58.3]} 15... Rc8 {[%clk 0:02:13.3]} 16. h3 {[%clk 0:01:47.9]} 16...
e6 {[%clk 0:01:56]} 17. f4 {[%clk 0:01:44.6]} 17... Bf8 {[%clk 0:01:55.2]} 18.
c6 {[%clk 0:01:33.6]} 18... Nxc6 {[%clk 0:01:25.5]} 19. Nxc4 {[%clk 0:01:33.1]}
19... b6 {[%clk 0:00:57.2]} 20. Nd6 {[%clk 0:01:31.4]} 20... Bxd6 {[%clk
0:00:54.6]} 21. Rxd6 {[%clk 0:01:33.3]} 21... Na5 {[%clk 0:00:49.9]} 22. Rd1
{[%clk 0:01:19]} 22... Kf8 {[%clk 0:00:29.6]} 23. Bd4 {[%clk 0:01:16.6]} 23...
Nd7 {[%clk 0:00:20.7]} 24. Nb5 {[%clk 0:01:13]} 24... a6 {[%clk 0:00:12.2]} 25.
Nd6 {[%clk 0:01:13.8]} 25... Rc2 {[%clk 0:00:13.5]} 26. Kf2 {[%clk 0:01:05.4]}
26... Nc6 {[%clk 0:00:12.6]} 27. Bc3 {[%clk 0:00:50.6]} 27... Ne7 {[%clk
0:00:10.3]} 28. Be4 {[%clk 0:00:45]} 28... Rxc3 {[%clk 0:00:11.7]} 29. bxc3
{[%clk 0:00:46.2]} 29... Nc5 {[%clk 0:00:13.2]} 30. Bf3 {[%clk 0:00:43.3]} 30...
Ba4 {[%clk 0:00:12.5]} 31. Rd2 {[%clk 0:00:35.1]} 31... Nc6 {[%clk 0:00:05.3]}
32. Nc4 {[%clk 0:00:29.8]} 32... Bb5 {[%clk 0:00:02.6]} 33. Nxb6 {[%clk
0:00:28.4]} 33... Ne7 {[%clk 0:00:03.8]} 34. g4 {[%clk 0:00:26.9]} 34... h6
{[%clk 0:00:04.4]} 35. h4 {[%clk 0:00:28]} 1-0

[Event "***Titled Tuesday 3|2 Blitz"]
[Site "Chess.com"]
[Date "2017.02.07"]
[Round "4"]
[White "Entilza"]
[Black "coalescenet"]
[Result "0-1"]
[WhiteElo "2162"]
[BlackElo "2314"]
[TimeControl "180+2"]
[EndTime "13:59:09 PST"]
[Termination "coalescenet won by resignation"]

1. d4 {[%clk 0:03:02]} 1... Nf6 {[%clk 0:02:59.7]} 2. c4 {[%clk 0:02:59.4]} 2...
e6 {[%clk 0:02:59.8]} 3. Nc3 {[%clk 0:02:58.8]} 3... Bb4 {[%clk 0:03:00.8]} 4.
e3 {[%clk 0:02:59.3]} 4... O-O {[%clk 0:03:00]} 5. Bd3 {[%clk 0:02:57.3]} 5...
d5 {[%clk 0:03:01]} 6. Ne2 {[%clk 0:02:57.4]} 6... dxc4 {[%clk 0:02:52.3]} 7.
Bxc4 {[%clk 0:02:57.9]} 7... c5 {[%clk 0:02:53.9]} 8. a3 {[%clk 0:02:58.2]} 8...
Bxc3+ {[%clk 0:02:48.6]} 9. bxc3 {[%clk 0:02:58.8]} 9... Nbd7 {[%clk 0:02:44.4]}
10. O-O {[%clk 0:02:56.8]} 10... a5 {[%clk 0:02:32.2]} 11. f3 {[%clk 0:02:56.3]}
11... b6 {[%clk 0:02:32.6]} 12. e4 {[%clk 0:02:53.2]} 12... Ba6 {[%clk
0:02:28.4]} 13. Bxa6 {[%clk 0:02:53.3]} 13... Rxa6 {[%clk 0:02:29.1]} 14. Bg5
{[%clk 0:02:37.9]} 14... Qa8 {[%clk 0:02:26.9]} 15. e5 {[%clk 0:02:19.6]} 15...
Nd5 {[%clk 0:02:26.1]} 16. c4 {[%clk 0:02:19]} 16... Nc7 {[%clk 0:02:23.7]} 17.
dxc5 {[%clk 0:02:03.6]} 17... Nxc5 {[%clk 0:02:23.8]} 18. Be7 {[%clk 0:02:02.6]}
18... Re8 {[%clk 0:02:11.3]} 19. Bd6 {[%clk 0:02:02.3]} 19... Rd8 {[%clk
0:02:09.6]} 20. Qe1 {[%clk 0:01:57.4]} 20... Ne8 {[%clk 0:02:10.3]} 21. Bxc5
{[%clk 0:01:53.4]} 21... bxc5 {[%clk 0:02:12.2]} 22. Nc3 {[%clk 0:01:54.2]}
22... Rb6 {[%clk 0:01:57.7]} 23. Ne4 {[%clk 0:01:51.7]} 23... Qc6 {[%clk
0:01:53.6]} 24. Qxa5 {[%clk 0:01:47.6]} 24... Ra8 {[%clk 0:01:39.5]} 25. Qe1
{[%clk 0:01:47.2]} 25... Rba6 {[%clk 0:01:39.6]} 26. Qg3 {[%clk 0:01:47]} 26...
Rxa3 {[%clk 0:01:32.8]} 27. Rxa3 {[%clk 0:01:47]} 27... Rxa3 {[%clk 0:01:34.1]}
28. Nf6+ {[%clk 0:01:46.8]} 28... Kf8 {[%clk 0:01:26.8]} 29. Nxh7+ {[%clk
0:01:46.2]} 29... Ke7 {[%clk 0:01:27.2]} 30. Qg5+ {[%clk 0:01:34.5]} 30... f6
{[%clk 0:01:26]} 31. exf6+ {[%clk 0:01:34.1]} 31... gxf6 {[%clk 0:01:27.5]} 32.
Qg8 {[%clk 0:01:24.7]} 32... Ra7 {[%clk 0:01:11.3]} 33. Rd1 {[%clk 0:01:19.7]}
33... Rd7 {[%clk 0:01:10.5]} 34. Qf8+ {[%clk 0:01:12.8]} 34... Kd8 {[%clk
0:01:10.8]} 35. Rxd7+ {[%clk 0:00:22.2]} 35... Qxd7 {[%clk 0:01:12.7]} 36. Qh6
{[%clk 0:00:23.1]} 36... Qd4+ {[%clk 0:01:05.1]} 37. Kf1 {[%clk 0:00:23.9]}
37... Qxc4+ {[%clk 0:01:04.8]} 38. Kf2 {[%clk 0:00:24.8]} 38... Qd4+ {[%clk
0:01:04.5]} 39. Kg3 {[%clk 0:00:25.5]} 39... c4 {[%clk 0:01:03.6]} 40. Nf8
{[%clk 0:00:22.2]} 40... Qd6+ {[%clk 0:01:02.7]} 41. f4 {[%clk 0:00:20.1]} 41...
c3 {[%clk 0:00:55.4]} 42. Ng6 {[%clk 0:00:20.4]} 42... c2 {[%clk 0:00:53.1]} 0-1

[Event "***Titled Tuesday 3|2 Blitz"]
[Site "Chess.com"]
[Date "2017.02.07"]
[Round "4"]
[White "Grebeniuk-S"]
[Black "GMBenjaminBok"]
[Result "0-1"]
[WhiteElo "2438"]
[BlackElo "2626"]
[TimeControl "180+2"]
[EndTime "13:59:13 PST"]
[Termination "GMBenjaminBok won on time"]

1. d4 {[%clk 0:03:02]} 1... Nf6 {[%clk 0:03:00.9]} 2. Nf3 {[%clk 0:02:59.7]}
2... g6 {[%clk 0:03:00.5]} 3. Bg5 {[%clk 0:03:01.2]} 3... Bg7 {[%clk 0:03:01.2]}
4. Nbd2 {[%clk 0:03:02.7]} 4... O-O {[%clk 0:03:02.2]} 5. e4 {[%clk 0:03:04.1]}
5... d5 {[%clk 0:03:02.4]} 6. exd5 {[%clk 0:03:04.7]} 6... Nxd5 {[%clk
0:03:00.1]} 7. c3 {[%clk 0:03:03.8]} 7... Bf5 {[%clk 0:02:59.6]} 8. Bc4 {[%clk
0:03:00.4]} 8... c6 {[%clk 0:03:00.6]} 9. O-O {[%clk 0:02:59.8]} 9... Nd7 {[%clk
0:03:01.6]} 10. Re1 {[%clk 0:03:00.7]} 10... N7b6 {[%clk 0:03:02.2]} 11. Bf1
{[%clk 0:02:56.8]} 11... Re8 {[%clk 0:02:58.1]} 12. Ne4 {[%clk 0:02:49.9]} 12...
Qc7 {[%clk 0:02:47.2]} 13. Bh4 {[%clk 0:02:43]} 13... Nd7 {[%clk 0:02:43.9]} 14.
Bg3 {[%clk 0:02:35.4]} 14... Qb6 {[%clk 0:02:44.7]} 15. Qb3 {[%clk 0:02:36]}
15... a5 {[%clk 0:02:35.5]} 16. Qxb6 {[%clk 0:02:28.3]} 16... N5xb6 {[%clk
0:02:35.9]} 17. Ne5 {[%clk 0:02:05.4]} 17... Nxe5 {[%clk 0:02:33.3]} 18. Bxe5
{[%clk 0:02:02.8]} 18... Bxe5 {[%clk 0:02:33.5]} 19. dxe5 {[%clk 0:02:04.7]}
19... Bxe4 {[%clk 0:02:35]} 20. Rxe4 {[%clk 0:02:04.9]} 20... Red8 {[%clk
0:02:36.6]} 21. Rae1 {[%clk 0:01:31.4]} 21... Rd2 {[%clk 0:02:34.4]} 22. R1e2
{[%clk 0:01:28.7]} 22... Rad8 {[%clk 0:02:33.6]} 23. f4 {[%clk 0:01:26.9]} 23...
Rd1 {[%clk 0:02:16.1]} 24. Re1 {[%clk 0:01:19.9]} 24... R8d2 {[%clk 0:01:59.4]}
25. Rxd1 {[%clk 0:01:19.2]} 25... Rxd1 {[%clk 0:02:01.3]} 26. Kf2 {[%clk
0:01:20.2]} 26... e6 {[%clk 0:02:00.6]} 27. Rd4 {[%clk 0:01:13.1]} 27... Rb1
{[%clk 0:02:00.2]} 28. Rd2 {[%clk 0:01:13.2]} 28... Na4 {[%clk 0:02:01.3]} 29.
Rd8+ {[%clk 0:00:18]} 29... Kg7 {[%clk 0:02:01.8]} 30. b3 {[%clk 0:00:17.7]}
30... Nxc3 {[%clk 0:02:02]} 31. Rd7 {[%clk 0:00:18.4]} 31... Ne4+ {[%clk
0:01:54.3]} 32. Ke3 {[%clk 0:00:13.9]} 32... Nc5 {[%clk 0:01:54.7]} 33. Bd3
{[%clk 0:00:13.7]} 33... Rd1 {[%clk 0:01:38.3]} 34. Rd4 {[%clk 0:00:12.7]} 34...
Rxd3+ {[%clk 0:01:38.3]} 35. Rxd3 {[%clk 0:00:13.8]} 35... Nxd3 {[%clk
0:01:40.2]} 36. Kxd3 {[%clk 0:00:15.7]} 36... Kf8 {[%clk 0:01:41]} 37. Kc4
{[%clk 0:00:16]} 37... b6 {[%clk 0:01:42.2]} 38. a4 {[%clk 0:00:07.7]} 38... Ke7
{[%clk 0:01:42.5]} 39. g4 {[%clk 0:00:09.3]} 39... Kd7 {[%clk 0:01:42.3]} 40. h3
{[%clk 0:00:10.5]} 40... Kc7 {[%clk 0:01:40.5]} 41. Kd4 {[%clk 0:00:10.5]} 41...
h6 {[%clk 0:01:12.1]} 42. Ke4 {[%clk 0:00:05.9]} 42... b5 {[%clk 0:01:07.2]} 43.
f5 {[%clk 0:00:06.4]} 43... g5 {[%clk 0:01:06.2]} 44. Kd4 {[%clk 0:00:06.4]}
44... Kb6 {[%clk 0:01:06.1]} 0-1

[Event "***Titled Tuesday 3|2 Blitz"]
[Site "Chess.com"]
[Date "2017.02.07"]
[Round "4"]
[White "gumersindo"]
[Black "Rozum_Ivan"]
[Result "0-1"]
[WhiteElo "2348"]
[BlackElo "2560"]
[TimeControl "180+2"]
[EndTime "13:59:13 PST"]
[Termination "Rozum_Ivan won by resignation"]

1. d4 {[%clk 0:03:02]} 1... Nf6 {[%clk 0:03:00.7]} 2. c4 {[%clk 0:03:00.5]} 2...
e6 {[%clk 0:03:02.1]} 3. Nc3 {[%clk 0:03:00.8]} 3... d5 {[%clk 0:03:03.3]} 4.
cxd5 {[%clk 0:03:00.8]} 4... exd5 {[%clk 0:03:05.2]} 5. Bg5 {[%clk 0:03:01.7]}
5... Be7 {[%clk 0:03:06.6]} 6. e3 {[%clk 0:03:02.6]} 6... c6 {[%clk 0:03:08]} 7.
Bd3 {[%clk 0:03:03.5]} 7... Nbd7 {[%clk 0:03:08.9]} 8. Qc2 {[%clk 0:02:59.9]}
8... Nh5 {[%clk 0:03:09.9]} 9. Bxe7 {[%clk 0:02:58.8]} 9... Qxe7 {[%clk
0:03:11.8]} 10. Nf3 {[%clk 0:02:59.5]} 10... Nb6 {[%clk 0:03:12.1]} 11. O-O
{[%clk 0:02:59.3]} 11... Bg4 {[%clk 0:03:00.9]} 12. Ne5 {[%clk 0:02:59.7]} 12...
Be6 {[%clk 0:03:02]} 13. a4 {[%clk 0:02:57.8]} 13... a5 {[%clk 0:02:50.6]} 14.
Rae1 {[%clk 0:02:43.9]} 14... Nf6 {[%clk 0:02:48.3]} 15. f3 {[%clk 0:02:41]}
15... Nbd7 {[%clk 0:02:46.2]} 16. f4 {[%clk 0:02:34.8]} 16... g6 {[%clk
0:02:35.8]} 17. e4 {[%clk 0:02:18.9]} 17... dxe4 {[%clk 0:02:30.5]} 18. Nxe4
{[%clk 0:02:19.7]} 18... Nxe4 {[%clk 0:02:29.8]} 19. Bxe4 {[%clk 0:02:19.8]}
19... Nxe5 {[%clk 0:02:29.8]} 20. dxe5 {[%clk 0:02:12]} 20... Qb4 {[%clk
0:02:30.6]} 21. Re3 {[%clk 0:02:05.7]} 21... O-O-O {[%clk 0:02:29.2]} 22. Rc3
{[%clk 0:01:56.2]} 22... Rd4 {[%clk 0:02:27.5]} 23. Re1 {[%clk 0:01:41.2]} 23...
Rhd8 {[%clk 0:02:26.3]} 24. h3 {[%clk 0:01:41.5]} 24... Rd2 {[%clk 0:02:25.7]}
25. Qc1 {[%clk 0:01:27.3]} 25... Qxb2 {[%clk 0:02:26.7]} 26. Qxb2 {[%clk
0:01:13.6]} 26... Rxb2 {[%clk 0:02:27.1]} 27. Rc5 {[%clk 0:01:15.2]} 27... Rdd2
{[%clk 0:02:23.4]} 28. Rxa5 {[%clk 0:01:14]} 28... Bd5 {[%clk 0:02:23.9]} 29.
Bxd5 {[%clk 0:01:12.2]} 29... cxd5 {[%clk 0:02:25.8]} 30. e6 {[%clk 0:01:10.5]}
30... Rxg2+ {[%clk 0:02:25.9]} 31. Kh1 {[%clk 0:01:10.8]} 31... Rh2+ {[%clk
0:02:24.3]} 32. Kg1 {[%clk 0:01:12]} 32... fxe6 {[%clk 0:02:21.1]} 33. Rxe6
{[%clk 0:01:12.6]} 33... Rbg2+ {[%clk 0:02:21.9]} 34. Kf1 {[%clk 0:01:12.5]}
34... Rd2 {[%clk 0:02:07.9]} 35. Kg1 {[%clk 0:01:13.5]} 35... Rhg2+ {[%clk
0:02:06.9]} 36. Kh1 {[%clk 0:01:11.6]} 36... Rgf2 {[%clk 0:02:05.1]} 37. Kg1
{[%clk 0:01:07.8]} 37... Rxf4 {[%clk 0:02:06]} 38. Re7 {[%clk 0:01:08.8]} 38...
Kb8 {[%clk 0:01:47.6]} 39. Rb5 {[%clk 0:01:09.4]} 39... Rc4 {[%clk 0:01:43.9]}
40. Rbxb7+ {[%clk 0:01:09.4]} 40... Kc8 {[%clk 0:01:44.4]} 41. Kf1 {[%clk
0:00:42.2]} 41... Rc1+ {[%clk 0:01:43.9]} 42. Re1 {[%clk 0:00:42.7]} 42... Rxe1+
{[%clk 0:01:42]} 43. Kxe1 {[%clk 0:00:44.6]} 43... Kxb7 {[%clk 0:01:40.9]} 44.
Kxd2 {[%clk 0:00:46.1]} 44... g5 {[%clk 0:01:41.7]} 45. Kd3 {[%clk 0:00:47.4]}
45... h5 {[%clk 0:01:42.8]} 46. Kd4 {[%clk 0:00:49]} 46... Kc6 {[%clk
0:01:26.9]} 47. a5 {[%clk 0:00:49.5]} 47... h4 {[%clk 0:00:53.1]} 48. a6 {[%clk
0:00:32.5]} 48... g4 {[%clk 0:00:53.7]} 49. hxg4 {[%clk 0:00:33.8]} 49... h3
{[%clk 0:00:54.9]} 50. g5 {[%clk 0:00:35.4]} 50... h2 {[%clk 0:00:56.1]} 51. g6
{[%clk 0:00:37.3]} 51... h1=Q {[%clk 0:00:57.2]} 0-1

[Event "***Titled Tuesday 3|2 Blitz"]
[Site "Chess.com"]
[Date "2017.02.07"]
[Round "4"]
[White "FMchesstrainer"]
[Black "stefanodinn"]
[Result "0-1"]
[WhiteElo "2361"]
[BlackElo "2238"]
[TimeControl "180+2"]
[EndTime "13:59:25 PST"]
[Termination "stefanodinn won on time"]

1. d4 {[%clk 0:03:02]} 1... Nf6 {[%clk 0:02:58.1]} 2. Bg5 {[%clk 0:03:00.8]}
2... c5 {[%clk 0:02:55.9]} 3. d5 {[%clk 0:03:00.8]} 3... Qb6 {[%clk 0:02:52.6]}
4. Nc3 {[%clk 0:03:01.2]} 4... Qxb2 {[%clk 0:02:49.3]} 5. Bd2 {[%clk 0:03:01.9]}
5... Qb6 {[%clk 0:02:45.9]} 6. e4 {[%clk 0:03:03.3]} 6... d6 {[%clk 0:02:44]} 7.
f4 {[%clk 0:03:04.4]} 7... g6 {[%clk 0:02:01.7]} 8. e5 {[%clk 0:03:02.8]} 8...
dxe5 {[%clk 0:01:58.3]} 9. fxe5 {[%clk 0:03:03.9]} 9... Ng4 {[%clk 0:01:59.2]}
10. Nf3 {[%clk 0:03:03.3]} 10... Bg7 {[%clk 0:01:54.5]} 11. Bb5+ {[%clk
0:03:04]} 11... Bd7 {[%clk 0:01:54.1]} 12. Qe2 {[%clk 0:02:51.3]} 12... Bxb5
{[%clk 0:01:50.9]} 13. Nxb5 {[%clk 0:02:50.9]} 13... O-O {[%clk 0:01:46.6]} 14.
O-O {[%clk 0:02:11.9]} 14... c4+ {[%clk 0:01:45.5]} 15. Kh1 {[%clk 0:02:08.5]}
15... Qxb5 {[%clk 0:01:43.3]} 16. Rab1 {[%clk 0:02:02.7]} 16... Qxd5 {[%clk
0:01:41.4]} 17. Bc3 {[%clk 0:02:03.5]} 17... Nc6 {[%clk 0:01:30.5]} 18. Rxb7
{[%clk 0:02:00.7]} 18... Rab8 {[%clk 0:01:04.8]} 19. Rc7 {[%clk 0:01:58.2]}
19... Rfc8 {[%clk 0:00:57.4]} 20. Rxc8+ {[%clk 0:01:52.5]} 20... Rxc8 {[%clk
0:00:58.1]} 21. h3 {[%clk 0:01:54]} 21... Ngxe5 {[%clk 0:00:53]} 22. Rd1 {[%clk
0:01:51.2]} 22... Qe6 {[%clk 0:00:49.6]} 23. Ng5 {[%clk 0:01:50]} 23... Qf5
{[%clk 0:00:48.3]} 24. Ne4 {[%clk 0:01:47.6]} 24... h5 {[%clk 0:00:36.2]} 25.
Rf1 {[%clk 0:01:47.9]} 25... Qd7 {[%clk 0:00:28.4]} 26. Rd1 {[%clk 0:01:47.4]}
26... Qe8 {[%clk 0:00:20.7]} 27. Rf1 {[%clk 0:01:44.7]} 27... Rd8 {[%clk
0:00:18.3]} 28. Ng5 {[%clk 0:01:45.3]} 28... Bf6 {[%clk 0:00:17.8]} 29. Ne4
{[%clk 0:01:45.7]} 29... Bg7 {[%clk 0:00:18.8]} 30. Ng5 {[%clk 0:01:46.9]} 30...
e6 {[%clk 0:00:17.9]} 31. Qf2 {[%clk 0:01:44.4]} 31... Qe7 {[%clk 0:00:18.1]}
32. Ne4 {[%clk 0:01:44.4]} 32... f5 {[%clk 0:00:18.2]} 33. Nc5 {[%clk
0:01:39.7]} 33... Nf7 {[%clk 0:00:18.3]} 34. Bxg7 {[%clk 0:01:38.3]} 34... Kxg7
{[%clk 0:00:19.1]} 35. Re1 {[%clk 0:01:39.1]} 35... e5 {[%clk 0:00:19.8]} 36.
Qe2 {[%clk 0:01:40.4]} 36... Qxc5 {[%clk 0:00:14.5]} 0-1

[Event "***Titled Tuesday 3|2 Blitz"]
[Site "Chess.com"]
[Date "2017.02.07"]
[Round "4"]
[White "JeremDev"]
[Black "filali-oujda"]
[Result "1-0"]
[WhiteElo "2120"]
[BlackElo "2169"]
[TimeControl "180+2"]
[EndTime "13:59:31 PST"]
[Termination "JeremDev won on time"]

1. e4 {[%clk 0:03:01.9]} 1... c6 {[%clk 0:03:02]} 2. d4 {[%clk 0:02:59.1]} 2...
d5 {[%clk 0:02:55.2]} 3. e5 {[%clk 0:03:00]} 3... c5 {[%clk 0:02:56]} 4. dxc5
{[%clk 0:02:59.5]} 4... Nc6 {[%clk 0:02:56.4]} 5. Nf3 {[%clk 0:03:00.2]} 5... e6
{[%clk 0:02:57.8]} 6. a3 {[%clk 0:02:55.7]} 6... Bxc5 {[%clk 0:02:55.9]} 7. Bd3
{[%clk 0:02:56.5]} 7... Qc7 {[%clk 0:02:53.8]} 8. Qe2 {[%clk 0:02:52.9]} 8...
Nge7 {[%clk 0:02:51.6]} 9. O-O {[%clk 0:02:52.4]} 9... Ng6 {[%clk 0:02:52.8]}
10. Re1 {[%clk 0:02:50]} 10... a6 {[%clk 0:02:51.8]} 11. h4 {[%clk 0:02:47.3]}
11... b5 {[%clk 0:02:51.3]} 12. h5 {[%clk 0:02:48]} 12... Nge7 {[%clk
0:02:51.3]} 13. b4 {[%clk 0:02:39]} 13... Bb6 {[%clk 0:02:50.7]} 14. Bb2 {[%clk
0:02:38.9]} 14... Bb7 {[%clk 0:02:51.3]} 15. Nbd2 {[%clk 0:02:39.7]} 15... g6
{[%clk 0:02:46.7]} 16. h6 {[%clk 0:02:38.4]} 16... Nf5 {[%clk 0:02:47.8]} 17.
Bxf5 {[%clk 0:02:35.6]} 17... gxf5 {[%clk 0:02:49.7]} 18. Nb3 {[%clk 0:02:35.8]}
18... Rg8 {[%clk 0:02:43.7]} 19. Nbd4 {[%clk 0:02:35.2]} 19... Rg4 {[%clk
0:02:33.6]} 20. Rad1 {[%clk 0:02:33.7]} 20... Ne7 {[%clk 0:02:33.8]} 21. Rd3
{[%clk 0:01:57.5]} 21... Ng6 {[%clk 0:02:28.7]} 22. Rc3 {[%clk 0:01:45.7]} 22...
Qe7 {[%clk 0:02:08.7]} 23. Nxb5 {[%clk 0:01:43.7]} 23... Nf4 {[%clk 0:02:08.6]}
24. Nd6+ {[%clk 0:01:38.2]} 24... Kf8 {[%clk 0:02:03.6]} 25. Qf1 {[%clk
0:01:15.9]} 25... Nh3+ {[%clk 0:01:45.7]} 26. Kh2 {[%clk 0:01:13.9]} 26... Nxf2
{[%clk 0:01:41.9]} 27. Rce3 {[%clk 0:01:12.6]} 27... Rh4+ {[%clk 0:01:36.9]} 28.
Nxh4 {[%clk 0:01:10.5]} 28... Qxh4+ {[%clk 0:01:38.8]} 29. Rh3 {[%clk
0:00:49.5]} 29... Nxh3 {[%clk 0:01:37.9]} 30. gxh3 {[%clk 0:00:48.9]} 30... Bf2
{[%clk 0:01:19.1]} 31. Nxb7 {[%clk 0:00:30.8]} 31... Qg3+ {[%clk 0:01:14.9]} 32.
Kh1 {[%clk 0:00:31.9]} 32... Bxe1 {[%clk 0:01:14.6]} 33. Bd4 {[%clk 0:00:23.9]}
33... f4 {[%clk 0:00:57.9]} 34. Qd3 {[%clk 0:00:09]} 34... Qxh3+ {[%clk
0:00:56.8]} 35. Qxh3 {[%clk 0:00:09.2]} 35... Rc8 {[%clk 0:00:55.9]} 36. Bc5+
{[%clk 0:00:08.7]} 1-0

[Event "***Titled Tuesday 3|2 Blitz"]
[Site "Chess.com"]
[Date "2017.02.07"]
[Round "4"]
[White "nOcHeaTiNgKiD"]
[Black "pedromartinez91"]
[Result "0-1"]
[WhiteElo "2179"]
[BlackElo "2296"]
[TimeControl "180+2"]
[EndTime "13:59:32 PST"]
[Termination "pedromartinez91 won by resignation"]

1. d4 {[%clk 0:03:01.9]} 1... d5 {[%clk 0:02:58.4]} 2. Bf4 {[%clk 0:03:01.7]}
2... Bf5 {[%clk 0:02:54.3]} 3. e3 {[%clk 0:03:00.5]} 3... e6 {[%clk 0:02:54.2]}
4. c4 {[%clk 0:03:01.2]} 4... Bd6 {[%clk 0:02:48.1]} 5. Bg3 {[%clk 0:03:00.6]}
5... Bxb1 {[%clk 0:02:48]} 6. Bxd6 {[%clk 0:02:46.6]} 6... cxd6 {[%clk
0:02:38.7]} 7. Qxb1 {[%clk 0:02:45.7]} 7... Qa5+ {[%clk 0:02:38.5]} 8. b4 {[%clk
0:02:43.9]} 8... Qa3 {[%clk 0:02:39.2]} 9. Qb3 {[%clk 0:02:41.2]} 9... Qxb3
{[%clk 0:02:33.8]} 10. axb3 {[%clk 0:02:41.9]} 10... Nc6 {[%clk 0:02:35.3]} 11.
b5 {[%clk 0:02:28.5]} 11... Nce7 {[%clk 0:02:29.7]} 12. Nf3 {[%clk 0:02:18.7]}
12... Kd7 {[%clk 0:02:29.7]} 13. Bd3 {[%clk 0:02:18.4]} 13... Nf6 {[%clk
0:02:30.2]} 14. Ke2 {[%clk 0:02:15.6]} 14... Ne4 {[%clk 0:02:29.9]} 15. Bxe4
{[%clk 0:02:15.4]} 15... dxe4 {[%clk 0:02:30.7]} 16. Nd2 {[%clk 0:01:48.2]}
16... f5 {[%clk 0:02:30.3]} 17. b4 {[%clk 0:01:48.8]} 17... Rhc8 {[%clk
0:02:21]} 18. Ra3 {[%clk 0:01:44.3]} 18... b6 {[%clk 0:02:10.1]} 19. Rha1 {[%clk
0:01:41.9]} 19... Rc7 {[%clk 0:02:10.7]} 20. Ra6 {[%clk 0:01:34.8]} 20... Nc8
{[%clk 0:02:11]} 21. f3 {[%clk 0:01:32]} 21... exf3+ {[%clk 0:02:10.2]} 22. gxf3
{[%clk 0:01:31.1]} 22... Rb8 {[%clk 0:02:10.7]} 23. Kd3 {[%clk 0:01:31]} 23...
Rbb7 {[%clk 0:02:10.4]} 24. Rg1 {[%clk 0:01:25.3]} 24... g6 {[%clk 0:02:10.8]}
25. h4 {[%clk 0:01:26.2]} 25... Kd8 {[%clk 0:02:08.6]} 26. Raa1 {[%clk 0:01:18]}
26... Rg7 {[%clk 0:02:08.5]} 27. Rg2 {[%clk 0:01:05.3]} 27... Rg8 {[%clk
0:02:05.5]} 28. Rag1 {[%clk 0:01:01.8]} 28... Rbg7 {[%clk 0:02:06.1]} 29. e4
{[%clk 0:00:59.9]} 29... h6 {[%clk 0:02:02.5]} 30. c5 {[%clk 0:00:58.1]} 30...
g5 {[%clk 0:01:57.6]} 31. hxg5 {[%clk 0:00:58.2]} 31... hxg5 {[%clk 0:01:56.1]}
32. Nc4 {[%clk 0:00:57]} 32... Kc7 {[%clk 0:01:53.5]} 33. Rc1 {[%clk 0:00:50]}
33... Kd7 {[%clk 0:01:39.2]} 34. Rgc2 {[%clk 0:00:39.9]} 34... g4 {[%clk
0:01:35]} 35. cxd6 {[%clk 0:00:39.4]} 35... gxf3 {[%clk 0:01:15.7]} 36. Ne5+
{[%clk 0:00:26.7]} 36... Kxd6 {[%clk 0:01:16.5]} 37. Rxc8 {[%clk 0:00:18.4]}
37... Rxc8 {[%clk 0:01:16.2]} 38. Rxc8 {[%clk 0:00:20.3]} 38... fxe4+ {[%clk
0:01:07.8]} 39. Ke3 {[%clk 0:00:20.9]} 39... Rg2 {[%clk 0:01:04.2]} 40. Rd8+
{[%clk 0:00:20.8]} 40... Ke7 {[%clk 0:01:03.1]} 41. Rd7+ {[%clk 0:00:21.7]}
41... Ke8 {[%clk 0:01:03.4]} 42. Rxa7 {[%clk 0:00:22.3]} 42... Re2+ {[%clk
0:01:03.3]} 43. Kf4 {[%clk 0:00:23]} 43... f2 {[%clk 0:01:03.7]} 44. Ra8+ {[%clk
0:00:23.8]} 44... Ke7 {[%clk 0:01:04]} 45. Ra7+ {[%clk 0:00:24.1]} 45... Kd8
{[%clk 0:00:57.8]} 46. Ra8+ {[%clk 0:00:18]} 46... Kc7 {[%clk 0:00:56.4]} 47.
Ra7+ {[%clk 0:00:19.3]} 47... Kc8 {[%clk 0:00:55.6]} 48. Nc6 {[%clk 0:00:05.8]}
48... f1=Q+ {[%clk 0:00:51.4]} 0-1